bitfinex-derivatives/quotes_ETHF0:USTF0_20250323
["timestamp","ask_amount","ask_price","bid_price","bid_amount"]
[1742702203508,2.34089,2006.6,2006.5,4.4774]
[1742702209113,1.344,2006.6,2006.5,5.47433]
[1742702212906,1.36657813,2006.8,2006.5,4.4774]
[1742702213209,0.69977813,2006.8,2006.7,0.99684]
[1742702213609,2.08317813,2006.8,2006.7,1.66774]
[1742702214399,0.00747813,2006.8,2006.7,1.66774]
[1742702214599,1.39087813,2006.8,2006.7,1.66774]
[1742702215810,2.38766813,2006.8,2006.7,1.66774]
[1742702216119,1.39087813,2006.8,2006.7,1.66774]
[1742702216614,1.39087813,2006.8,2006.7,0.6709]
[1742702216911,1.39087813,2006.8,2006.7,1.66774]
[1742702217913,1.39087813,2006.8,2006.7,2.33924]
[1742702219313,2.38766813,2006.8,2006.7,2.33924]
[1742702220815,1.39087813,2006.8,2006.7,2.33924]
[1742702225716,0.00747813,2006.8,2006.7,2.33924]
[1742702226513,1.3032,2007.2,2007.1,0.99664]
[1742702226719,1.66991,2007.4,2006.9,2.49184]
[1742702226720,0.6734,2007.4,2007.3,0.99654]
[1742702227316,0.6457,2007.5,2007.4,0.99649]
[1742702227817,0.6457,2007.5,2007.4,1.68029]
[1742702228014,1.9104,2007.5,2007.4,2.97079]
[1742702228718,1.2647,2007.5,2007.4,2.97079]
[1742702228919,1.37107813,2007.7,2007.6,0.99639]
[1742702232217,0.68087813,2007.7,2007.6,0.99639]
[1742702232522,0.00747813,2007.7,2007.6,4.20419]
[1742702233315,0.69397813,2007.7,2007.6,4.20419]
[1742702246029,0.99639,2007.6,2007.5,2.2869]
[1742702246233,2.0497,2007.6,2007.5,2.2869]
[1742702246425,3.04609,2007.6,2007.5,0.99644]
[1742702246626,3.04609,2007.6,2007.4,1.26717813]
[1742702246828,1.2754,2007.5,2007.4,1.26717813]
[1742702247926,1.2754,2007.5,2007.4,2.26366813]
[1742702248734,1.2754,2007.5,2007.4,1.00396813]
[1742702249037,1.2754,2007.5,2007.4,2.26366813]
[1742702249436,2.27184,2007.5,2007.4,0.00747813]
[1742702250635,1.2754,2007.5,2007.4,1.00396813]
[1742702250835,1.2754,2007.5,2007.4,2.29326813]
[1742702256346,1.2754,2007.5,2007.4,2.96936813]
[1742702257040,0.6796,2007.6,2007.5,0.99644]
[1742702257342,1.9634,2007.6,2007.5,2.30994]
[1742702271354,1.9634,2007.6,2007.5,5.51774]
[1742702276250,0.00747813,2007.7,2007.6,0.99639]
[1742702276452,1.38677813,2007.7,2007.6,2.36569]
[1742702280463,2.38311813,2007.7,2007.6,2.36569]
[1742702280660,1.38677813,2007.7,2007.6,2.36569]
[1742702282471,2.38311813,2007.7,2007.6,2.36569]
[1742702283165,1.38677813,2007.7,2007.6,2.36569]
[1742702284572,2.38311813,2007.7,2007.6,2.36569]
[1742702285168,1.38677813,2007.7,2007.6,2.36569]
[1742702286464,2.38311813,2007.7,2007.6,2.36569]
[1742702286869,1.38677813,2007.7,2007.6,2.36569]
[1742702292175,1.38677813,2007.7,2007.6,5.57349]
[1742702297075,2.38311813,2007.7,2007.6,5.57349]
[1742702300277,2.38311813,2007.7,2007.6,2.36569]
[1742702302084,2.38311813,2007.7,2007.6,1.3693]
[1742702302285,2.38311813,2007.7,2007.6,2.36569]
[1742702304782,2.38311813,2007.7,2007.6,1.3693]
[1742702304984,2.38311813,2007.7,2007.6,2.36569]
[1742702305581,2.38311813,2007.7,2007.6,1.3693]
[1742702305778,2.38311813,2007.7,2007.6,2.36569]
[1742702306976,0.00747813,2007.7,2007.6,5.57349]
[1742702307685,0.00747813,2007.7,2007.6,6.22119]
[1742702310588,0.00747813,2007.7,2007.6,6.5972456]
[1742702312384,0.00747813,2007.7,2007.6,6.22119]
[1742702313778,1.70501587,2008.2,2008.1,0.99614]
[1742702313985,1.89373308,2008.2,2008.1,0.99614]
[1742702314183,1.89373308,2008.2,2008.0,0.99616]
[1742702314392,0.99614,2008.1,2008.0,0.99616]
[1742702315084,0.99614,2008.1,2008.0,2.26866]
[1742702316678,2.33803,2008.2,2008.0,2.26864]
[1742702316881,2.33803,2008.2,2008.1,1.3861]
[1742702317090,0.99613,2008.2,2008.1,1.3861]
[1742702327607,0.99613,2008.2,2008.1,2.38224]
[1742702327792,0.99613,2008.2,2008.1,1.3861]
[1742702327987,0.99613,2008.2,2008.1,2.38224]
[1742702329191,0.99613,2008.2,2008.1,1.3861]
[1742702329391,0.99613,2008.2,2008.1,2.38224]
[1742702329600,0.99613,2008.2,2008.1,1.3861]
[1742702329991,0.99613,2008.2,2008.1,2.38224]
[1742702330698,0.99613,2008.2,2008.1,1.3861]
[1742702331298,0.99613,2008.2,2008.1,2.38224]
[1742702332197,0.99613,2008.2,2008.1,1.3861]
[1742702333297,0.99613,2008.2,2008.1,2.38224]
[1742702333497,2.34403,2008.2,2008.1,2.38224]
[1742702335299,2.34403,2008.2,2008.1,1.3861]
[1742702336899,3.14997386,2008.2,2008.1,1.3861]
[1742702340103,2.34403,2008.2,2008.1,1.3861]
[1742702351909,3.14997386,2008.2,2008.1,1.3861]
[1742702355711,2.34403,2008.2,2008.1,1.3861]
[1742702356312,3.14997386,2008.2,2008.1,1.3861]
[1742702357619,2.34403,2008.2,2008.1,1.3861]
[1742702360120,3.15213072,2008.2,2008.1,1.3861]
[1742702363006,2.34403,2008.2,2008.1,1.3861]
[1742702364109,3.15216239,2008.2,2008.1,1.3861]
[1742702369010,2.34403,2008.2,2008.1,1.3861]
[1742702370421,0.89608304,2008.4,2008.1,1.3861]
[1742702370612,0.89608304,2008.4,2008.3,4.20384]
[1742702370813,0.89608304,2008.6,2008.5,0.99594]
[1742702371219,2.34755,2008.7,2008.5,0.99594]
[1742702371425,2.34755,2008.7,2008.6,2.34069]
[1742702371426,1.3517,2008.7,2008.6,2.34069]
[1742702371618,2.34754,2008.7,2008.6,2.34069]
[1742702371922,1.3517,2008.7,2008.6,2.34069]
[1742702372322,5.25761109,2008.8,2008.6,2.34069]
[1742702372323,6.25344109,2008.8,2008.6,2.34069]
[1742702372637,6.25344109,2008.8,2008.7,1.3448]
[1742702378125,9.46124109,2008.8,2008.7,1.3448]
[1742702379826,8.46541109,2008.8,2008.4,0.00747813]
[1742702380028,0.99589,2008.6,2008.5,1.3704]
[1742702380524,2.30099,2008.6,2008.5,1.3704]
[1742702380723,2.30099,2008.6,2008.5,2.0642]
[1742702381925,8.46541109,2008.8,2008.5,2.0642]
[1742702382230,10.76634109,2008.8,2008.6,2.98377]
[1742702382430,10.76634109,2008.8,2008.7,1.3163]
[1742702382632,9.46124109,2008.8,2008.7,2.31214]
[1742702382934,5.25761109,2008.8,2008.7,2.31214]
[1742702383420,4.20347,2009.1,2008.9,0.99572]
[1742702383620,5.54997,2009.1,2009.0,1.371]
[1742702383835,4.20347,2009.1,2009.0,1.371]
[1742702389129,0.99567,2009.1,2009.0,1.371]
[1742702391639,0.99574,2008.9,2008.8,0.6656]
[1742702391939,2.35063,2009.0,2008.8,1.66139]
[1742702392133,0.99574,2008.9,2008.8,1.66139]
[1742702392334,1.3549,2009.0,2008.8,1.66139]
[1742702392637,2.35063,2009.0,2008.8,1.66139]
[1742702393036,2.35063,2009.0,2008.9,1.359]
[1742702395532,0.99565,2009.1,2008.9,1.359]
[1742702395833,0.6579,2009.3,2008.9,2.047]
[1742702396034,0.6579,2009.3,2009.1,0.99561]
[1742702396336,0.6579,2009.3,2009.2,2.3859]
[1742702396833,1.65345,2009.3,2009.2,1.3903]
[1742702398839,1.65345,2009.3,2009.2,2.3859]
[1742702399139,1.65345,2009.3,2009.2,1.3903]
[1742702402432,0.6579,2009.3,2009.2,2.3859]
[1742702402633,2.48841,2009.7,2009.5,0.99543]
[1742702402634,0.99538,2009.7,2009.5,0.99543]
[1742702402834,0.99541,2009.6,2009.4,0.99547]
[1742702403034,0.99538,2009.7,2009.5,3.03315]
[1742702403234,0.99538,2009.7,2009.6,1.3908]
[1742702403443,0.99545,2009.5,2009.4,0.00747813]
[1742702404845,0.99545,2009.5,2009.4,1.33137813]
[1742702405239,1.65765,2009.5,2009.4,1.33137813]
[1742702405439,1.65765,2009.5,2009.4,2.32687813]
[1742702405628,1.65765,2009.5,2009.4,1.33137813]
[1742702406036,1.65765,2009.5,2009.4,0.00747813]
[1742702406250,4.86545,2009.5,2009.4,0.00747813]
[1742702406939,6.5640889,2009.5,2009.4,0.00747813]
[1742702408747,0.9956,2009.2,2009.1,1.3239]
[1742702409140,0.99569,2009.0,2008.9,3.2078]
[1742702409842,2.97509,2009.0,2008.9,3.2078]
[1742702410343,0.99574,2008.9,2008.8,1.3156]
[1742702410542,2.32364,2008.9,2008.8,1.3156]
[1742702410739,0.99579,2008.8,2008.7,0.00747813]
[1742702410943,3.03689,2008.8,2008.7,1.29187813]
[1742702411142,6.24469,2008.8,2008.7,0.00747813]
[1742702411646,2.0411,2008.8,2008.7,1.00331813]
[1742702411836,3.03689,2008.8,2008.7,0.00747813]
[1742702412043,1.377,2008.8,2008.7,2.96961813]
[1742702412240,1.377,2008.8,2008.7,3.65471813]
[1742702412440,0.99576,2008.9,2008.8,0.99579]
[1742702412744,1.64723,2009.0,2008.8,2.28019]
[1742702412938,3.02423,2009.0,2008.8,2.28019]
[1742702413139,3.02423,2009.0,2008.9,2.28014]
[1742702413540,3.02423,2009.0,2008.9,1.2844]
[1742702414140,2.0285,2009.0,2008.7,1.37447813]
[1742702414445,2.32734,2008.9,2008.8,1.3647]
[1742702414645,1.3316,2008.9,2008.8,2.36049]
[1742702417350,2.32734,2008.9,2008.8,2.36049]
[1742702417657,2.32734,2008.9,2008.8,1.3647]
[1742702418450,2.32734,2008.9,2008.8,2.36049]
[1742702418639,2.32734,2008.9,2008.8,1.3647]
[1742702418840,0.99579,2008.8,2008.7,0.00747813]
[1742702419146,2.90789,2008.8,2008.7,0.00747813]
[1742702421349,2.90789,2008.8,2008.3,3.2078]
[1742702421350,0.99599,2008.4,2008.3,3.2078]
[1742702421649,0.99599,2008.4,2008.3,4.5783]
[1742702422539,2.97459,2008.4,2008.3,4.5783]
[1742702424044,2.97459,2008.4,2008.3,1.3705]
[1742702424349,0.99609,2008.2,2008.1,0.00747813]
[1742702424546,0.99609,2008.2,2008.1,1.36427813]
[1742702428452,2.33857,2008.3,2008.1,2.36041813]
[1742702428654,2.33857,2008.3,2008.1,1.36427813]
[1742702428848,2.33857,2008.3,2008.2,1.3649]
[1742702429954,1.3425,2008.3,2008.1,0.00747813]
[1742702430156,2.31539,2008.2,2008.1,0.00747813]
[1742702430950,6.30955,2008.2,2007.6,3.2078]
[1742702431151,0.99639,2007.6,2007.5,1.2685]
[1742702432450,0.99649,2007.4,2007.3,0.00747813]
[1742702432650,0.67337813,2007.8,2007.3,0.00747813]
[1742702432651,0.00747813,2007.8,2007.3,1.32307813]
[1742702432851,2.25542,2008.2,2007.5,3.2078]
[1742702433045,0.99614,2008.1,2007.8,4.20408]
[1742702433250,0.99614,2008.1,2007.9,0.6492]
[1742702433452,0.99614,2008.1,2007.9,1.9648]
[1742702433952,0.99614,2008.1,2008.0,1.3156]
[1742702434560,2.26288813,2008.2,2008.0,1.3156]
[1742702434857,1.26677813,2008.2,2008.0,1.9989]
[1742702435052,2.25544,2008.1,2008.0,1.9989]
[1742702435247,2.25544,2008.1,2007.9,0.6492]
[1742702435453,1.3358,2008.0,2007.9,0.6492]
[1742702435663,0.00747813,2008.2,2007.9,0.6492]
[1742702435961,2.33938813,2008.2,2008.0,0.6833]
[1742702436659,0.99614,2008.1,2008.0,0.6833]
[1742702437047,2.33939813,2008.2,2008.0,0.6833]
[1742702437251,2.33939813,2008.2,2008.0,1.67947]
[1742702437252,0.00747813,2008.2,2008.0,1.67947]
[1742702437463,0.00747813,2008.2,2008.1,0.99614]
[1742702437855,0.00747813,2008.2,2008.1,3.2078]
[1742702438056,0.00747813,2008.2,2008.1,4.20394]
[1742702438457,0.00747813,2008.2,2008.1,3.2078]
[1742702438856,1.29867813,2008.2,2008.1,3.2078]
[1742702439458,2.29476813,2008.2,2008.1,3.2078]
[1742702439660,2.96316813,2008.2,2008.1,3.2078]
[1742702439850,2.29476813,2008.2,2008.1,3.2078]
[1742702440055,1.29867813,2008.2,2008.1,3.2078]
[1742702440557,2.29476813,2008.2,2008.1,3.2078]
[1742702441352,0.99626,2007.9,2007.7,3.9023]
[1742702441558,0.99629,2007.8,2007.7,3.2078]
[1742702442951,0.99629,2007.8,2007.3,0.00747813]
[1742702442952,0.99649,2007.4,2007.3,0.00747813]
[1742702443160,1.9407,2007.7,2007.3,0.00747813]
[1742702443461,4.20413,2007.8,2007.5,0.99644]
[1742702443665,4.5075,2007.8,2007.6,0.6285]
[1742702443864,5.50382,2007.8,2007.6,0.6285]
[1742702444053,0.99634,2007.7,2007.6,0.6285]
[1742702444462,2.29601,2007.8,2007.6,0.6285]
[1742702444864,0.99634,2007.7,2007.6,0.6285]
[1742702445061,2.29834,2007.7,2007.6,0.6285]
[1742702446367,0.99644,2007.5,2007.4,3.8503]
[1742702446558,0.99644,2007.5,2007.4,3.8641]
[1742702446761,0.99644,2007.5,2007.4,3.2078]
[1742702447161,0.99649,2007.4,2007.3,0.00747813]
[1742702447677,0.99649,2007.4,2007.3,0.70437813]
[1742702448165,0.99649,2007.4,2007.3,0.00747813]
[1742702450672,4.20429,2007.4,2007.3,0.00747813]
[1742702454070,4.20429,2007.4,2006.8,3.2078]
[1742702454271,0.99674,2006.9,2006.8,3.2078]
[1742702454679,0.675,2007.1,2006.9,0.99671]
[1742702454869,0.99669,2007.0,2006.8,4.20454]
[1742702455377,0.99669,2007.0,2006.9,1.3632]
[1742702455876,2.27559,2007.0,2006.9,1.3632]
[1742702466784,2.95839,2007.0,2006.9,1.3632]
[1742702479986,7.66124,2007.0,2006.7,0.00747813]
[1742702480190,1.299,2006.9,2006.7,1.38237813]
[1742702480591,1.64119,2006.8,2006.7,1.38237813]
[1742702487799,1.64119,2006.8,2006.7,0.00747813]
[1742702489603,2.92959,2006.8,2006.7,0.00747813]
[1742702490104,2.92959,2006.8,2006.5,4.5256]
[1742702490105,0.99689,2006.6,2006.5,3.2078]
[1742702490797,2.29639,2006.6,2006.5,3.2078]
[1742702495309,0.99698,2006.4,2006.3,0.00747813]
[1742702495911,3.01808,2006.4,2006.3,0.00747813]
[1742702506218,0.99723,2005.9,2005.8,3.2078]
[1742702506829,0.99723,2005.9,2005.8,3.856]
[1742702507527,0.99723,2005.9,2005.8,5.165]
[1742702508824,0.9972,2006.0,2005.8,6.16225]
[1742702509026,0.9972,2006.0,2005.9,1.272]
[1742702509425,2.3167,2006.0,2005.9,1.272]
[1742702510729,0.9972,2006.0,2005.9,1.272]
[1742702516630,1.6805,2006.0,2005.9,1.272]
[1742702517130,8.13e-06,2006.1,2005.9,13.568]
[1742702517431,0.99682,2006.8,2006.6,0.99687]
[1742702517631,0.99679,2006.8,2006.7,1.9753]
[1742702518632,1.68999,2006.8,2006.7,1.9753]
[1742702518836,1.68999,2006.8,2006.7,1.323]
[1742702519032,2.37329,2006.8,2006.7,1.323]
[1742702526343,1.68999,2006.8,2006.7,1.323]
[1742702537135,1.68999,2006.8,2006.7,2.31984]
[1742702537642,1.68999,2006.8,2006.7,1.323]
[1742702541847,1.68999,2006.8,2006.7,4.5308]
[1742702542642,1.68999,2006.8,2006.7,5.52764]
[1742702542848,1.68999,2006.8,2006.7,4.5308]
[1742702546755,1.68999,2006.8,2006.7,5.52764]
[1742702548148,1.68999,2006.8,2006.7,4.5308]
[1742702548953,1.68999,2006.8,2006.7,5.52764]
[1742702549149,1.68999,2006.8,2006.7,4.5308]
[1742702549752,1.68999,2006.8,2006.7,5.52764]
[1742702550657,1.68999,2006.8,2006.7,4.5308]
[1742702551455,1.68999,2006.8,2006.7,3.2078]
[1742702551661,0.99689,2006.6,2006.5,0.00747813]
[1742702551859,0.99689,2006.6,2006.5,1.31897813]
[1742702552360,2.34259,2006.6,2006.5,1.31897813]
[1742702553461,1.3457,2006.6,2006.5,2.31590813]
[1742702553758,2.34259,2006.6,2006.5,2.31590813]
[1742702554458,2.34259,2006.6,2006.5,1.31897813]
[1742702556750,2.34259,2006.6,2006.5,4.52677813]
[1742702557562,2.34259,2006.6,2006.5,1.31897813]
[1742702557766,2.34259,2006.6,2006.5,4.52677813]
[1742702558666,2.34259,2006.6,2006.5,5.52370813]
[1742702558865,2.34259,2006.6,2006.5,4.52677813]
[1742702559662,2.34259,2006.6,2006.5,5.52370813]
[1742702560258,1.3457,2006.6,2006.5,5.52370813]
[1742702560467,2.34259,2006.6,2006.5,5.52370813]
[1742702562163,2.34259,2006.6,2006.5,4.52677813]
[1742702562356,2.34259,2006.6,2006.5,5.52370813]
[1742702563267,1.3457,2006.6,2006.5,5.52370813]
[1742702563653,2.34259,2006.6,2006.5,5.52370813]
[1742702564157,2.34259,2006.6,2006.5,2.31590813]
[1742702564655,2.34259,2006.6,2006.5,5.52370813]
[1742702565060,2.34259,2006.6,2006.5,4.52677813]
[1742702565567,2.34259,2006.6,2006.5,5.52370813]
[1742702566065,2.34259,2006.6,2006.5,4.52677813]
[1742702567063,2.34259,2006.6,2006.5,2.16757813]
[1742702567264,0.99703,2006.3,2006.2,1.2762]
[1742702567471,0.99703,2006.3,2006.2,2.27328]
[1742702567665,0.99699,2006.4,2006.3,0.99702]
[1742702567872,0.6798,2006.4,2006.2,4.484]
[1742702568071,1.337,2006.3,2006.2,5.48108]
[1742702568270,1.337,2006.3,2006.2,4.20488]
[1742702569674,2.33403,2006.3,2006.2,4.20488]
[1742702570263,1.337,2006.3,2006.2,4.20488]
[1742702571972,0.644,2006.5,2006.4,0.99698]
[1742702572272,1.64093,2006.5,2006.4,0.99698]
[1742702574173,0.644,2006.5,2006.4,0.99698]
[1742702574669,1.9103,2006.5,2006.4,0.99698]
[1742702576677,1.58374965,2006.8,2006.7,0.99684]
[1742702576874,2.28949,2006.8,2006.7,0.99684]
[1742702577567,2.28949,2006.8,2006.6,0.99685]
[1742702577967,1.3881,2006.7,2006.6,0.99685]
[1742702579069,1.3881,2006.7,2006.6,1.66895]
[1742702579871,2.38494,2006.7,2006.6,1.66895]
[1742702580773,2.38494,2006.7,2006.6,0.99685]
[1742702581167,2.38494,2006.7,2006.5,4.2047]
[1742702581369,1.3617,2006.6,2006.5,4.2047]
[1742702583680,1.3617,2006.6,2006.5,5.5154]
[1742702584777,0.00747813,2007.0,2006.9,0.99674]
[1742702585377,0.00747813,2007.0,2006.9,2.31204]
[1742702585577,0.00747813,2007.0,2006.9,2.94654]
[1742702594085,0.6745,2007.3,2007.2,0.99659]
[1742702594276,1.9645,2007.3,2007.2,4.20439]
[1742702594476,1.29,2007.3,2007.2,4.20439]
[1742702594883,1.29,2007.3,2007.2,4.87219]
[1742702599186,1.29,2007.3,2007.2,5.23789139]
[1742702601888,1.29,2007.3,2007.2,4.57009139]
[1742702602189,1.974,2007.3,2007.2,4.57009139]
[1742702608694,2.97054,2007.3,2007.2,3.2078]
[1742702611998,0.99659,2007.2,2007.1,2.3119]
[1742702612194,2.25879,2007.2,2007.1,2.3119]
[1742702612397,2.25879,2007.2,2007.0,0.99666]
[1742702612700,1.9427,2007.1,2007.0,0.99666]
[1742702612897,2.93934,2007.1,2007.0,0.99666]
[1742702613397,2.93934,2007.1,2007.0,2.33076]
[1742702613795,0.99669,2007.0,2006.9,3.2078]
[1742702613992,0.99676,2006.9,2006.7,1.3341]
[1742702614192,1.2622,2006.8,2006.7,2.33094]
[1742702614392,1.9468,2006.8,2006.7,2.33094]
[1742702619394,0.6567,2007.0,2006.9,0.99674]
[1742702619593,0.6743,2007.1,2007.0,0.99669]
[1742702620903,1.9776,2007.1,2007.0,0.99669]
[1742702621604,1.3033,2007.1,2007.0,0.99669]
[1742702621792,0.6878,2007.3,2007.2,0.99659]
[1742702623104,1.9911,2007.3,2007.2,2.30949]
[1742702637298,1.9911,2007.3,2007.1,0.9966]
[1742702637503,2.3679,2007.2,2007.0,4.20444]
[1742702637701,1.3713,2007.1,2007.0,4.20449]
[1742702637994,3.05134,2007.1,2007.0,4.20449]
[1742702638198,2.0547,2007.1,2007.0,4.20449]
[1742702643515,2.0547,2007.1,2007.0,5.55569]
[1742702643815,2.0547,2007.1,2007.0,6.21729]
[1742702649113,2.0547,2007.1,2007.0,5.55569]
[1742702652214,2.0547,2007.1,2007.0,6.24549]
[1742702653716,2.0547,2007.1,2007.0,5.55569]
[1742702658723,1.3713,2007.1,2007.0,5.55569]
[1742702676146,1.3713,2007.1,2007.0,4.20449]
[1742702685145,0.9967,2007.0,2006.7,3.2078]
[1742702685451,1.8895,2006.9,2006.7,2.2824]
[1742702685752,0.6308,2006.9,2006.8,1.2856]
[1742702687345,1.62754,2006.9,2006.8,1.2856]
[1742702697358,0.631,2007.0,2006.9,0.99674]
[1742702697555,1.62769,2007.0,2006.9,4.20454]
[1742702697755,0.631,2007.0,2006.9,4.20454]
[1742702698466,1.62769,2007.0,2006.9,4.20454]
[1742702698766,1.62769,2007.0,2006.9,3.2078]
[1742702699272,1.62769,2007.0,2006.9,4.5864]
[1742702700666,1.62769,2007.0,2006.9,1.3786]
[1742702700864,0.99679,2006.8,2006.6,4.20465]
[1742702701067,0.99679,2006.8,2006.7,1.3957]
[1742702701567,0.99679,2006.8,2006.7,2.39254]
[1742702701870,0.99679,2006.8,2006.7,1.3957]
[1742702704475,0.99693,2006.5,2006.3,0.997]
[1742702704682,0.99693,2006.5,2006.4,1.3502]
[1742702706469,0.99692,2006.6,2006.4,2.34718]
[1742702706677,0.99692,2006.6,2006.5,1.3691]
[1742702709578,0.99689,2006.6,2006.5,1.3691]
[1742702712984,0.99686,2006.7,2006.5,2.366]
[1742702713175,0.99686,2006.7,2006.6,1.2981]
[1742702713779,0.99682,2006.8,2006.6,2.29499]
[1742702714181,0.99682,2006.8,2006.7,1.2981]
[1742702714979,0.99693,2006.5,2006.4,0.99695]
[1742702715386,2.49185,2006.9,2006.4,0.99695]
[1742702715690,0.99693,2006.5,2006.4,0.99695]
[1742702716078,0.99691,2006.6,2006.4,0.99695]
[1742702716274,0.99691,2006.6,2006.5,1.2648]
[1742702716490,1.75512194,2007.0,2006.6,0.99687]
[1742702716491,0.99683,2006.8,2006.6,0.99687]
[1742702716792,0.99683,2006.8,2006.7,1.2648]
[1742702718693,1.69053,2006.8,2006.7,1.2648]
[1742702719990,0.99693,2006.6,2006.4,0.99695]
[1742702720690,0.99693,2006.5,2006.4,0.99695]
[1742702721093,0.99692,2006.6,2006.4,0.99695]
[1742702721280,0.99692,2006.6,2006.5,1.3852]
[1742702722889,0.99703,2006.3,2006.2,3.8553]
[1742702723193,0.99703,2006.3,2006.2,3.2078]
[1742702724190,0.99703,2006.3,2006.2,4.4712]
[1742702724584,0.99703,2006.3,2006.2,1.2634]
[1742702727595,0.99708,2006.2,2006.1,0.00747813]
[1742702727895,3.02038,2006.2,2006.1,1.28387813]
[1742702733895,3.02038,2006.2,2006.1,0.00747813]
[1742702738994,3.71098,2006.2,2006.1,0.00747813]
[1742702740606,6.91878,2006.2,2006.1,0.00747813]
[1742702747007,3.71098,2006.2,2006.1,0.00747813]
[1742702752517,0.94743411,2006.3,2006.1,0.00747813]
[1742702752715,0.99708,2006.2,2006.1,2.35778813]
[1742702754826,0.99708,2006.2,2006.1,1.36067813]
[1742702755330,0.99708,2006.2,2006.1,2.73117813]
[1742702756129,2.28327,2006.3,2006.1,3.72830813]
[1742702756434,2.28327,2006.3,2006.2,1.3705]
[1742702757833,0.99707,2006.3,2006.2,2.36758]
[1742702758034,0.99707,2006.3,2006.2,1.3705]
[1742702758431,2.31627,2006.3,2006.2,1.3705]
[1742702773550,2.31627,2006.3,2006.1,0.00747813]
[1742702773551,0.99708,2006.2,2006.1,0.00747813]
[1742702773754,3.66808,2006.2,2006.1,0.00747813]
[1742702775955,3.66808,2006.2,2006.1,1.31337813]
[1742702781656,3.66808,2006.2,2006.1,0.00747813]
[1742702782451,3.66808,2006.2,2006.1,1.29827813]
[1742702783660,3.66808,2006.2,2006.1,0.00747813]
[1742702785858,3.66808,2006.2,2006.1,1.39977813]
[1742702787961,4.47684207,2006.2,2006.1,0.00747813]
[1742702790066,4.47684207,2006.2,2006.1,1.28517813]
[1742702791471,2.49286,2006.1,2005.7,3.2078]
[1742702791772,0.99723,2005.9,2005.8,1.2683]
[1742702792169,1.64673,2005.9,2005.8,1.2683]
[1742702792371,2.95623,2005.9,2005.8,1.2683]
[1742702797562,6.16403,2005.9,2005.8,1.2683]
[1742702797762,6.16403,2005.9,2005.6,0.00747813]
[1742702797763,0.99733,2005.7,2005.6,0.00747813]
[1742702797970,0.99733,2005.7,2005.6,1.32777813]
[1742702798477,2.32853,2005.7,2005.6,1.32777813]
[1742702803674,0.99758,2005.2,2005.1,4.20539]
[1742702804180,0.99758,2005.2,2005.1,6.70539]
[1742702804475,0.99758,2005.2,2005.1,5.7078]
[1742702805580,0.99758,2005.2,2005.1,7.36733]
[1742702806476,0.99758,2005.2,2005.1,4.86733]
[1742702806980,0.99758,2005.2,2005.1,3.8697]
[1742702808081,0.99758,2005.2,2005.1,5.1596]
[1742702809276,0.99758,2005.2,2005.1,1.9518]
[1742702809683,1.63038,2005.2,2005.1,1.9518]
[1742702809981,2.99458,2005.2,2005.1,1.2899]
[1742702810975,0.99768,2005.0,2004.9,1.3079854]
[1742702812372,0.99768,2005.0,2004.9,2.5763854]
[1742702814684,2.35418,2005.0,2004.9,2.5763854]
[1742702815076,5.56198,2005.0,2004.9,1.2733854]
[1742702815384,6.24308,2005.0,2004.9,1.2733854]
[1742702817591,0.99778,2004.8,2004.7,0.6964]
[1742702822692,0.99783,2004.7,2004.6,1.2973]
[1742702822893,0.99783,2004.7,2004.6,1.9838]
[1742702823702,2.32393,2004.7,2004.6,1.9838]
[1742702826495,2.32393,2004.7,2004.6,1.2973]
[1742702826697,3.01053,2004.7,2004.6,1.2973]
[1742702827603,0.99788,2004.6,2004.5,3.2078]
[1742702827807,2.32258,2004.6,2004.5,4.5627]
[1742702828505,2.32258,2004.6,2004.5,1.3549]
[1742702829396,0.99808,2004.2,2004.1,4.20591]
[1742702829701,3.81946,2004.6,2004.1,5.50851]
[1742702829702,0.99806,2004.3,2004.1,5.50851]
[1742702830098,0.99808,2004.2,2004.1,5.50851]
[1742702830298,0.00747813,2004.4,2004.1,5.50851]
[1742702830509,0.99807,2004.3,2004.1,5.50851]
[1742702830704,0.99807,2004.3,2004.2,1.3144]
[1742702831204,1.36077813,2004.4,2004.3,0.99803]
[1742702831205,0.00747813,2004.4,2004.3,0.99803]
[1742702831506,0.99788,2004.6,2004.5,0.99791]
[1742702831702,0.99788,2004.6,2004.5,4.20571]
[1742702832203,0.99788,2004.6,2004.5,4.5222]
[1742702833609,2.35118,2004.6,2004.5,4.5222]
[1742702835310,2.35118,2004.6,2004.5,5.52013]
[1742702836405,2.35118,2004.6,2004.5,4.5222]
[1742702838312,0.99798,2004.4,2004.3,0.00747813]
[1742702839599,0.99798,2004.4,2004.3,1.29877813]
[1742702845315,1.3905,2004.5,2004.3,2.29680813]
[1742702845513,1.3905,2004.5,2004.4,1.67778]
[1742702845704,1.3905,2004.5,2004.4,3.68308]
[1742702846111,0.99786,2004.7,2004.6,0.99788]
[1742702846305,2.36536,2004.7,2004.5,4.5938]
[1742702846505,1.3675,2004.7,2004.6,2.38388]
[1742702847113,2.36533,2004.7,2004.6,2.38388]
[1742702849214,2.36533,2004.7,2004.6,1.386]
[1742702853227,2.36533,2004.7,2004.6,2.38388]
[1742702853416,2.36533,2004.7,2004.6,1.386]
[1742702853618,2.36533,2004.7,2004.6,2.38388]
[1742702853826,2.36533,2004.7,2004.6,1.386]
[1742702855919,2.36533,2004.7,2004.6,2.38388]
[1742702856219,2.36533,2004.7,2004.6,1.386]
[1742702857815,2.36533,2004.7,2004.6,2.38388]
[1742702858009,1.3675,2004.7,2004.6,2.38388]
[1742702859724,1.00526813,2004.8,2004.7,0.99783]
[1742702859725,0.00747813,2004.8,2004.7,0.99783]
[1742702860022,0.00747813,2004.8,2004.7,3.66713]
[1742702860210,1.31467813,2004.8,2004.7,3.66713]